bitfinex/quotes_ETHUSD_20220213
["timestamp","ask_amount","ask_price","bid_price","bid_amount"]
[1644723990177,0.22568857,2928.5,2927.2,6.8339614]
[1644723990376,1.45288093,2928.3,2927.7,0.867197]
[1644723990577,1.45288093,2928.3,2927.2,5.65072429]
[1644723990777,1.45288093,2928.2,2927.2,5.65072429]
[1644723990976,1.45288093,2928.1,2927.2,5.65072429]
[1644723991180,0.22568857,2928.5,2927.2,5.65072429]
[1644723991577,1.45283607,2928.4,2927.2,5.65072429]
[1644723991982,0.01027692,2928.0,2927.2,5.65072429]
[1644723992180,0.01027692,2928.0,2927.6,0.95607854]
[1644723992378,0.01027692,2928.0,2927.6,1.55607854]
[1644723992979,0.22568857,2928.5,2927.6,1.55607854]
[1644723993234,0.01027699,2927.9,2927.6,1.55607854]
[1644723993938,0.01027699,2927.9,2927.6,2.40975854]
[1644723994135,0.1706,2928.3,2927.6,2.40975854]
[1644723994335,1.45280407,2928.2,2927.6,2.40975854]
[1644723994535,0.01027707,2927.9,2927.6,2.40975854]
[1644723995438,0.05527703,2928.4,2927.6,2.40975854]
[1644723995640,0.01027707,2927.9,2927.6,2.40975854]
[1644723995838,0.01027707,2927.9,2927.6,1.55607854]
[1644723996639,0.05527703,2928.4,2927.6,1.55607854]
[1644723996875,0.01027707,2927.9,2927.6,1.55607854]
[1644723997682,0.04110211,2928.3,2927.6,1.55607854]
[1644723997878,1.45290233,2928.2,2927.6,0.6]
[1644723998080,0.01027707,2927.9,2927.6,0.6]
[1644723998285,1.45290233,2927.8,2927.6,0.3]
[1644723998486,0.01027707,2927.9,2927.2,4.75385686]
[1644723998686,0.01027707,2927.9,2927.2,5.05385686]
[1644723998887,0.01027707,2927.9,2927.3,1.1737176]
[1644723999096,0.21170211,2928.3,2927.1,3.4]
[1644723999097,1.45302992,2927.8,2927.1,3.4]
[1644723999292,1.46330728,2927.7,2927.1,3.4]
[1644723999590,2.11282992,2927.6,2927.1,3.4]
[1644723999786,1.45302992,2927.5,2927.1,3.4]
[1644723999987,0.1708,2927.4,2927.1,3.4]
[1644724000187,1.45302992,2927.3,2927.1,3.4]
[1644724000392,1.45302992,2927.3,2926.6,0.25]
[1644724000393,1.55030856,2926.9,2926.6,0.25]
[1644724000642,1.45302992,2926.8,2926.4,0.04112607]
[1644724001430,1.45302992,2926.8,2925.8,0.25]
[1644724001431,3.53061136,2926.7,2926.3,1.04829292]
[1644724002034,1.55030856,2926.9,2926.3,1.34829292]
[1644724002233,1.55030856,2926.9,2926.3,1.64829292]
[1644724002834,1.45338405,2926.8,2926.3,1.64829292]
[1644724003238,1.55030856,2926.9,2926.3,1.64829292]
[1644724004481,1.55030856,2926.9,2926.3,2.64829292]
[1644724005482,0.02850342,2926.7,2926.3,1.6]
[1644724005682,0.02850342,2926.7,2926.4,0.96873229]
[1644724006081,0.02850342,2926.7,2926.4,1.26873229]
[1644724007682,0.02850342,2926.7,2926.4,4.66873229]
[1644724007883,0.02850342,2926.7,2926.5,1.0]
[1644724008154,0.02850342,2926.7,2926.5,1.3]
[1644724010150,0.01027601,2927.5,2926.5,2.05]
[1644724010350,0.01027601,2927.5,2927.0,0.85378]
[1644724010553,0.01027601,2927.5,2927.2,1.05598077]
[1644724010752,0.01027601,2927.5,2927.3,0.1]
[1644724010951,0.1708,2928.1,2927.3,0.1]
[1644724011151,1.45282037,2928.0,2927.8,0.1]
[1644724011352,1.45282037,2927.9,2927.8,0.1]
[1644724011555,1.45282037,2927.9,2927.8,0.4]
[1644724011981,1.45282037,2928.0,2927.8,0.4]
[1644724012185,1.45282037,2927.9,2927.8,0.4]
[1644724013186,1.45282037,2927.9,2927.8,0.1]
[1644724013785,3.39110561,2928.3,2927.8,0.1]
[1644724013786,0.00962933,2928.0,2927.8,0.1]
[1644724013986,1.45282037,2927.9,2927.8,0.1]
[1644724015932,3.5898451,2928.3,2927.8,0.1]
[1644724015933,1.45282037,2928.0,2927.8,0.1]
[1644724016129,1.45282037,2927.9,2927.8,0.1]
[1644724016531,1.45282037,2927.9,2927.4,0.1]
[1644724017132,1.45282037,2927.8,2927.4,0.1]
[1644724017335,1.45282037,2927.7,2927.4,0.1]
[1644724018537,1.46249352,2927.7,2927.4,0.1]
[1644724018937,0.00967315,2927.7,2927.4,0.1]
[1644724019379,0.1706,2928.2,2927.4,3.5]
[1644724019580,0.00967026,2927.7,2927.4,3.5]
[1644724020481,0.00967026,2927.7,2927.6,0.1]
[1644724020681,0.1706,2928.2,2927.6,0.1]
[1644724020882,0.00967026,2927.7,2927.6,0.1]
[1644724021381,1.46255583,2927.7,2927.6,0.1]
[1644724021582,0.00967026,2927.7,2927.6,0.1]
[1644724021881,1.45288557,2927.7,2927.6,0.1]
[1644724022081,1.46255568,2927.8,2927.6,0.1]
[1644724022283,0.00967011,2927.8,2927.6,0.1]
[1644724023128,0.1706,2928.2,2927.6,0.1]
[1644724023335,0.00967024,2927.8,2927.6,0.1]
[1644724024133,3.0422,2928.4,2927.6,0.1]
[1644724024333,3.0422,2928.4,2928.2,1.1943283]
[1644724024334,1.45277387,2928.3,2928.2,1.1943283]
[1644724024535,0.35529238,2928.1,2927.5,1.62524797]
[1644724024735,1.45277387,2928.0,2927.6,1.1877052]
[1644724024933,1.45277387,2928.0,2927.7,0.85365]
[1644724025334,1.45277387,2928.0,2927.8,0.3]
[1644724025735,1.46244389,2928.0,2927.8,0.3]
[1644724025934,0.00967002,2928.0,2927.8,0.3]
[1644724026533,0.35529238,2928.1,2927.8,0.3]
[1644724026989,0.00967717,2928.0,2927.8,0.3]
[1644724027793,0.35529238,2928.1,2927.8,0.3]
[1644724028389,0.00967717,2928.0,2927.8,0.3]
[1644724028889,0.00967717,2928.0,2927.6,1.81299588]
[1644724029091,0.35529238,2928.1,2927.6,1.81299588]
[1644724029289,0.00967717,2928.0,2927.6,1.81299588]
[1644724030293,0.35529238,2928.1,2927.6,1.81299588]
[1644724030491,0.35529238,2928.1,2927.9,0.02501903]
[1644724031734,0.36496166,2928.1,2927.9,0.02501903]
[1644724032538,4.69266688,2928.0,2927.9,0.02501903]
[1644724035178,4.69280633,2928.0,2927.9,0.02501903]
[1644724035778,4.69280633,2928.0,2927.4,4.0]
[1644724035984,1.45297152,2927.9,2927.4,4.0]
[1644724036185,1.45297152,2927.9,2927.4,3.4]
[1644724036385,3.23564785,2927.8,2927.4,3.4]
[1644724036584,1.45297152,2927.7,2927.4,3.4]
[1644724037188,3.28892914,2927.6,2927.4,3.4]
[1644724037387,3.45952914,2927.6,2927.4,3.4]
[1644724037587,1.45312198,2927.5,2927.4,3.4]
[1644724037786,4.89903744,2927.5,2927.4,3.4]
[1644724039238,1.45312198,2927.5,2927.4,3.4]
[1644724040239,0.00967059,2927.6,2927.5,0.02524797]
[1644724040440,1.46282813,2927.6,2927.5,0.02524797]
[1644724041039,1.45315754,2927.6,2927.5,0.02524797]
[1644724041440,1.46282801,2927.7,2927.5,0.02524797]
[1644724041640,1.45315754,2927.6,2927.5,0.02524797]
[1644724042486,1.46282801,2927.7,2927.5,0.02524797]
[1644724042687,1.45315754,2927.6,2927.5,0.02524797]
[1644724044188,0.00967047,2927.7,2927.5,0.02524797]
[1644724044386,1.45305949,2927.6,2927.5,0.02524797]
[1644724044987,1.45303098,2927.6,2927.5,0.02524797]
[1644724050981,0.00967046,2927.7,2927.5,0.02524797]
[1644724051186,1.45303098,2927.6,2927.5,0.02524797]
[1644724051982,1.45303098,2927.6,2927.5,0.89621568]
[1644724055237,1.45303098,2927.6,2927.5,0.02524797]
[1644724056977,0.00967046,2927.7,2927.5,0.02524797]
[1644724057183,1.45303098,2927.6,2927.5,0.02524797]
[1644724058183,0.00967046,2927.7,2927.5,0.02524797]
[1644724058383,1.45303098,2927.6,2927.5,0.02524797]
[1644724059385,0.00967046,2927.7,2927.5,0.02524797]
[1644724059583,1.45303098,2927.6,2927.5,0.02524797]
[1644724060649,0.00967046,2927.7,2927.5,0.02524797]
[1644724060841,1.45303098,2927.6,2927.5,0.02524797]
[1644724061858,0.00967046,2927.7,2927.5,0.02524797]
[1644724062043,1.45303098,2927.6,2927.5,0.02524797]
[1644724064883,1.45291479,2927.6,2927.5,0.02524797]
[1644724065282,0.00967046,2927.7,2927.5,0.02524797]
[1644724065482,1.45291479,2927.6,2927.5,0.02524797]
[1644724067784,0.00967046,2927.7,2927.5,0.02524797]
[1644724067984,1.45291479,2927.6,2927.5,0.02524797]
[1644724069040,0.00948914,2927.7,2927.5,0.02524797]
[1644724069241,1.45291479,2927.6,2927.5,0.02524797]
[1644724070139,0.00948914,2927.7,2927.5,0.02524797]
[1644724070339,1.45291479,2927.6,2927.5,0.02524797]
[1644724071441,0.00948914,2927.7,2927.5,0.02524797]
[1644724071641,1.45291479,2927.6,2927.5,0.02524797]
[1644724073787,0.00911513,2927.7,2927.5,0.02524797]
[1644724074088,1.45291479,2927.6,2927.5,0.02524797]
[1644724075289,1.45291479,2927.6,2927.5,0.32524797]
[1644724075487,1.45291479,2927.6,2927.5,0.02524797]
[1644724075735,1.45291479,2927.6,2927.5,3.45333248]
[1644724076134,0.00914058,2927.7,2927.5,3.45333248]
[1644724076434,1.45291479,2927.6,2927.5,3.45333248]
[1644724077237,1.45291479,2928.0,2927.5,3.45333248]
[1644724077433,0.00915293,2927.7,2927.5,3.45333248]
[1644724077634,1.45291479,2927.6,2927.5,3.45333248]
[1644724078438,1.45291479,2928.0,2927.5,3.45333248]
[1644724078638,0.00915293,2927.7,2927.5,3.45333248]
[1644724078937,1.45291479,2927.6,2927.5,3.45333248]
[1644724079783,1.45291479,2927.6,2927.5,4.45333248]
[1644724080981,0.35529238,2928.1,2927.5,1.32524797]
[1644724080982,0.00914911,2927.7,2927.5,1.32524797]
[1644724081285,1.45291479,2927.6,2927.5,1.32524797]
[1644724082684,1.45291479,2927.6,2927.5,4.45565922]
[1644724084535,0.35529238,2928.1,2927.5,4.45565922]
[1644724084536,0.0091495,2927.7,2927.5,4.45565922]
[1644724084940,1.45291479,2927.6,2927.5,4.50339634]
[1644724085641,1.45291479,2927.6,2927.5,1.32524797]
[1644724085839,1.45291479,2927.6,2927.5,4.44931397]
[1644724087279,1.45291479,2927.6,2927.5,1.32524797]
[1644724087483,1.45291479,2927.6,2927.5,4.45977624]
[1644724088081,0.00914946,2927.7,2927.5,4.45977624]
[1644724088284,0.00914946,2927.7,2927.6,4.05872745]
[1644724088484,0.00914946,2927.7,2927.6,1.55788354]
[1644724088686,1.46198052,2927.7,2927.6,4.69347936]
[1644724089086,1.45283106,2927.7,2927.6,1.55788354]
[1644724089487,0.00914933,2927.8,2927.6,1.55788354]
[1644724089687,1.45283106,2927.7,2927.6,1.55788354]
[1644724095388,0.00914932,2927.8,2927.6,1.55788354]
[1644724095586,1.45283106,2927.7,2927.6,1.55788354]
[1644724097786,0.00914932,2927.8,2927.6,1.55788354]
[1644724097992,1.45283106,2927.7,2927.6,1.55788354]
[1644724099034,0.35529238,2928.1,2927.6,4.70406867]
[1644724099035,0.00914932,2927.8,2927.6,4.70406867]
[1644724099236,1.45283106,2927.7,2927.6,4.70406867]
[1644724099734,1.45283106,2927.7,2927.6,1.55788354]
[1644724100136,0.00914932,2927.8,2927.6,1.55788354]
[1644724100334,1.45283106,2927.7,2927.6,1.55788354]
[1644724102480,0.35529238,2928.1,2927.6,1.55788354]
[1644724102481,1.45283106,2928.0,2927.6,1.55788354]
[1644724102679,0.00914932,2927.8,2927.6,0.6]
[1644724102880,1.45283106,2927.7,2927.5,1.62524797]
[1644724103783,1.45283106,2927.6,2927.5,1.62524797]
[1644724104185,1.45283106,2927.6,2927.5,0.02524797]
[1644724104385,1.45283106,2927.6,2927.5,1.70543082]
[1644724104585,1.45283106,2927.6,2927.5,1.40543082]
[1644724104784,1.45283106,2927.6,2927.5,1.10543082]
[1644724104985,0.00914941,2927.7,2927.5,1.10543082]
[1644724105284,1.45283106,2927.6,2927.5,1.10543082]
[1644724106138,0.00914945,2927.7,2927.5,1.70543082]
[1644724106335,1.45283106,2927.6,2927.5,1.40543082]
[1644724106634,1.45283106,2927.6,2927.5,1.10543082]
[1644724107434,0.1706,2928.0,2927.5,1.10543082]
[1644724107435,0.00914945,2927.7,2927.5,1.10543082]
[1644724107641,1.45283106,2927.6,2927.5,1.10543082]
[1644724108642,0.00914945,2927.7,2927.5,1.10543082]
[1644724108839,1.45283106,2927.6,2927.5,1.10543082]
[1644724110495,1.45283106,2927.6,2927.5,4.81957455]
[1644724110693,0.35529238,2928.1,2927.6,0.00088655]
[1644724110896,0.52589238,2928.1,2928.0,0.95317641]
[1644724111093,1.80806189,2928.1,2928.0,0.95317641]
[1644724113137,0.80806189,2928.1,2928.0,0.95317641]
[1644724113342,0.00915565,2928.2,2928.0,0.95317641]
[1644724114342,0.00385214,2928.4,2928.0,0.95317641]
[1644724114541,0.00915559,2928.2,2928.0,0.95317641]
[1644724115143,0.00915559,2928.2,2928.0,1.55317641]
[1644724115742,0.00385214,2928.4,2928.0,1.55317641]
[1644724115743,0.00385214,2928.4,2928.0,1.58857926]
[1644724115943,0.00915533,2928.2,2928.0,1.58857926]
[1644724116747,0.00385214,2928.4,2928.0,1.58857926]
[1644724117281,0.00914798,2928.2,2928.0,0.33540285]
[1644724117480,0.00914798,2928.2,2928.0,0.03540285]
[1644724117680,0.00914798,2928.2,2928.1,0.3]
[1644724117880,0.00914798,2928.2,2928.0,0.03540285]
[1644724118081,0.00385214,2928.4,2928.0,0.98349799]
[1644724118288,0.00914791,2928.3,2928.0,0.98349799]
[1644724119186,0.00385214,2928.4,2928.0,0.98349799]
[1644724119587,0.00914818,2928.3,2928.0,0.98349799]
[1644724120185,0.00914818,2928.3,2928.0,0.94809514]
[1644724120386,0.00385214,2928.4,2928.0,0.94809514]
[1644724120629,0.00914867,2928.3,2928.0,0.94809514]
[1644724120830,0.00914867,2928.3,2928.0,4.34809514]
[1644724121036,0.00914867,2928.3,2928.0,3.4]
[1644724121441,0.00914867,2928.3,2928.0,1.85024725]
[1644724121442,0.64963405,2928.2,2928.0,1.85024725]
[1644724121639,0.1706,2928.1,2928.0,1.85024725]
[1644724121836,0.82023405,2928.1,2928.0,1.85024725]
[1644724122034,0.64963405,2928.1,2928.0,1.85024725]
[1644724122436,1.04217969,2928.3,2928.0,1.85024725]
[1644724122640,0.1706,2928.2,2928.0,1.85024725]
[1644724123040,0.65256159,2928.1,2928.0,1.85024725]
[1644724123436,0.6596,2928.2,2928.0,1.85024725]
[1644724123636,3.50597677,2928.1,2928.0,1.85024725]
[1644724123839,3.67657677,2928.1,2928.0,1.85024725]
[1644724126381,4.32890942,2928.1,2928.0,1.85024725]
[1644724126782,3.67657677,2928.1,2928.0,1.85024725]
[1644724127182,3.50597677,2928.1,2928.0,1.85024725]
[1644724127384,4.15818141,2928.1,2928.0,1.85024725]
[1644724129338,0.65220464,2928.1,2928.0,1.85024725]
[1644724129936,0.00912039,2928.2,2928.0,1.85024725]
[1644724129937,0.65220464,2928.2,2928.0,1.85024725]
[1644724130138,3.23364745,2928.1,2928.0,1.85024725]
[1644724130337,0.6613341,2928.2,2928.0,1.85024725]
[1644724130737,3.2375,2928.1,2928.0,1.85024725]
[1644724130937,0.6613341,2928.2,2928.0,1.85024725]
[1644724131138,3.24173521,2928.1,2928.0,1.85024725]
[1644724131538,3.23564785,2928.1,2928.0,1.85024725]
[1644724131742,3.24143835,2928.1,2928.0,1.85024725]
[1644724133183,4.69437963,2928.1,2928.0,1.85024725]
[1644724133584,1.45294128,2928.1,2928.0,1.85024725]
[1644724133990,1.45294128,2928.1,2928.0,2.15024725]
[1644724134190,1.45294128,2928.1,2928.0,1.85024725]
[1644724137034,1.45294128,2928.1,2928.0,2.95451792]
[1644724137431,0.0091437,2928.2,2928.0,2.95451792]
[1644724137632,1.45294128,2928.1,2928.0,2.95451792]
[1644724138436,1.45294128,2928.1,2928.0,6.21588155]
[1644724138636,1.45294128,2928.1,2928.0,2.95451792]
[1644724140189,1.45294128,2928.1,2928.0,6.03742346]
[1644724140390,1.45294128,2928.1,2928.0,6.37597182]
[1644724140589,0.00914385,2928.2,2928.0,6.37597182]
[1644724140794,0.00385887,2928.6,2928.1,3.11400247]
[1644724140990,0.00914384,2928.2,2928.1,3.11400247]
[1644724141593,0.00914384,2928.2,2928.1,3.41400247]
[1644724141792,0.00817071,2928.2,2928.1,3.41400247]
[1644724141992,0.00385887,2928.8,2928.1,3.41400247]
[1644724142195,1.45640632,2928.8,2928.1,3.41400247]
[1644724142398,1.45640632,2928.8,2928.1,0.3]
[1644724142592,1.45640632,2928.8,2928.0,3.55451792]
[1644724142796,1.45640632,2928.8,2928.0,3.25451792]
[1644724142993,1.45254745,2928.7,2928.0,3.25451792]
[1644724143237,1.45640632,2928.6,2928.0,3.25451792]
[1644724143435,1.45254745,2928.5,2928.1,3.14815102]
[1644724143635,0.00385887,2928.5,2928.1,3.14815102]
[1644724143936,1.45632537,2929.0,2928.2,0.48794355]
[1644724144134,1.45632537,2929.0,2928.2,0.78794355]
[1644724144335,1.45632537,2929.0,2928.2,0.48794355]
[1644724144536,1.45632537,2929.0,2928.7,1.08491264]
[1644724145438,1.45632537,2929.0,2928.2,0.48794355]
[1644724145439,0.46439923,2928.6,2928.2,0.48794355]
[1644724145638,0.46439923,2928.6,2928.2,0.78794355]
[1644724145639,1.4524665,2928.5,2928.2,0.78794355]
[1644724145837,1.4524665,2928.5,2928.3,0.85348]
[1644724146035,1.4524665,2928.5,2928.3,1.15348]
[1644724146236,1.4524665,2928.5,2928.3,1.45348]
[1644724146437,1.4524665,2928.5,2928.4,1.13312221]
[1644724146880,0.4682581,2928.6,2928.4,4.97654326]
[1644724147082,0.47467018,2928.6,2928.4,1.73312221]
[1644724148079,0.46439923,2928.6,2928.4,1.73312221]
[1644724148285,0.47467011,2928.6,2928.4,1.73312221]
[1644724149183,0.46439923,2928.6,2928.4,1.73312221]
[1644724149384,0.47467011,2928.6,2928.4,1.73312221]
[1644724149586,0.47467011,2928.6,2928.5,0.489]
[1644724150385,0.46439923,2928.6,2928.5,0.489]
[1644724150836,0.46439923,2928.6,2928.4,1.73312221]
[1644724150837,0.46439923,2928.6,2928.4,1.13312221]
[1644724151039,1.45247003,2928.5,2928.4,1.13312221]
[1644724152043,1.45247003,2928.5,2928.1,0.489]
[1644724152249,1.45247003,2928.5,2928.0,1.85024725]
[1644724153345,1.45247003,2928.5,2928.2,0.98716853]
[1644724153745,1.45247003,2928.5,2928.0,1.85024725]
[1644724154382,1.46273435,2928.5,2928.0,1.85024725]
[1644724154686,1.45247003,2928.4,2928.0,1.85024725]
[1644724154884,1.4563289,2928.4,2928.0,1.85024725]
[1644724155487,1.46273457,2928.3,2928.0,1.85024725]
[1644724155688,0.01026454,2928.3,2928.0,1.85024725]
[1644724156488,0.00385887,2928.4,2928.1,1.01770348]
[1644724156688,0.01026461,2928.3,2928.1,1.01770348]
[1644724157389,0.39546847,2928.6,2928.1,1.01770348]
[1644724157589,1.45263002,2928.5,2928.1,1.01770348]
[1644724159136,0.00598342,2928.4,2928.1,1.01770348]
[1644724159937,0.39546847,2928.6,2928.1,1.01770348]
[1644724160137,1.45260572,2928.5,2928.1,1.01770348]
[1644724160344,0.01026429,2928.4,2928.1,1.01770348]
[1644724161135,0.39546847,2928.6,2928.1,1.01770348]
[1644724161337,0.01026429,2928.4,2928.1,1.01770348]
[1644724161540,1.45263874,2928.3,2928.1,1.01770348]
[1644724162584,0.01026419,2928.4,2928.1,1.01770348]
[1644724162786,1.45266993,2928.3,2928.1,1.01770348]
[1644724163803,0.01026419,2928.4,2928.1,1.01770348]
[1644724163988,1.45266062,2928.3,2928.1,1.01770348]
[1644724165093,0.01026419,2928.4,2928.1,1.01770348]
[1644724165291,0.01026419,2928.4,2928.1,1.31770348]
[1644724165497,0.01026419,2928.4,2928.1,1.61770348]
[1644724165945,0.39546847,2928.6,2928.1,1.61770348]
[1644724166246,0.01026429,2928.4,2928.1,1.61770348]
[1644724167248,0.39546847,2928.6,2928.1,1.61770348]
[1644724167448,0.01026429,2928.4,2928.2,3.18539949]
[1644724168453,0.39546847,2928.6,2928.2,3.18539949]
[1644724168651,0.0102644,2928.4,2928.2,3.18539949]
[1644724169683,0.39546847,2928.6,2928.2,3.18539949]
[1644724169983,0.0102644,2928.4,2928.2,3.18539949]
[1644724170784,0.39546847,2928.6,2928.2,3.18539949]
[1644724170986,0.39546847,2928.6,2928.1,1.61770348]
[1644724170987,0.0102644,2928.4,2928.1,1.61770348]
[1644724171987,0.39546847,2928.6,2928.1,1.61770348]
[1644724172187,0.01026429,2928.4,2928.1,1.61770348]
[1644724173245,0.00385672,2928.5,2928.1,1.61770348]
[1644724173443,0.01026429,2928.4,2928.1,1.61770348]
[1644724174442,0.00385672,2928.5,2928.1,1.61770348]
[1644724174643,0.01026429,2928.4,2928.1,1.61770348]
[1644724175243,0.01026429,2928.4,2928.1,1.01770348]
[1644724175642,0.00385672,2928.5,2928.1,1.01770348]
[1644724175848,0.01026429,2928.4,2928.1,1.01770348]
[1644724176044,0.01026429,2928.4,2928.1,1.31770348]
[1644724176244,0.01026429,2928.4,2928.1,1.61770348]
[1644724176886,0.00385672,2928.5,2928.1,1.61770348]
[1644724177084,0.01026429,2928.4,2928.1,1.61770348]
[1644724177988,0.00385672,2928.5,2928.1,1.61770348]
[1644724178590,1.4563524,2928.5,2928.1,1.61770348]
[1644724180294,0.00385672,2928.5,2928.1,1.61770348]
[1644724180496,1.45633849,2928.5,2928.1,1.61770348]
[1644724180734,1.45248177,2928.4,2928.1,2.47123348]
[1644724180942,1.45248177,2928.3,2928.1,2.47123348]
[1644724181132,0.00385672,2928.5,2928.1,2.47123348]
[1644724181333,1.45632714,2928.5,2928.1,2.47123348]
[1644724181540,1.45632714,2928.5,2928.1,1.61770348]
[1644724181740,1.46659133,2928.5,2928.1,1.61770348]
[1644724181938,1.45247042,2928.4,2928.1,1.61770348]
[1644724182941,0.00385672,2928.5,2928.1,1.61770348]
[1644724182942,1.45247042,2928.3,2928.1,1.61770348]
[1644724183147,0.01412081,2928.5,2928.1,1.61770348]
[1644724183340,1.45248845,2928.4,2928.1,1.61770348]
[1644724183546,1.45248845,2928.4,2928.1,2.47123348]
[1644724184143,1.45248845,2928.3,2928.1,2.47123348]
[1644724184386,0.01412081,2928.5,2928.1,2.47123348]
[1644724184587,1.45246146,2928.4,2928.1,2.47123348]
[1644724185386,0.00385672,2928.5,2928.1,2.47123348]
[1644724185387,1.45246146,2928.3,2928.1,2.47123348]
[1644724185587,0.01412081,2928.5,2928.1,2.47123348]
[1644724185786,1.452465,2928.4,2928.1,2.47123348]
[1644724186590,1.452465,2928.3,2928.1,2.47123348]
[1644724186794,0.01412081,2928.5,2928.1,2.47123348]
[1644724186996,1.45246741,2928.4,2928.1,2.47123348]
[1644724187891,1.45246741,2928.3,2928.1,1.87123348]
[1644724188156,0.01412081,2928.5,2928.1,1.87123348]
[1644724188352,1.45249403,2928.4,2928.1,1.87123348]
[1644724189051,1.45249403,2928.3,2928.1,1.87123348]
[1644724189249,0.01412081,2928.5,2928.1,1.87123348]
[1644724189453,1.4524894,2928.4,2928.1,1.87123348]
[1644724190352,1.4524894,2928.3,2928.1,2.17123348]
[1644724190552,0.01412081,2928.5,2928.1,2.47123348]
[1644724190752,1.45246438,2928.4,2928.1,2.47123348]
[1644724191358,1.46658519,2928.5,2928.1,2.47123348]
[1644724191552,1.45246438,2928.4,2928.1,2.47123348]
[1644724192584,0.00385672,2928.5,2928.1,2.47123348]
[1644724192585,1.45246438,2928.3,2928.1,2.47123348]
[1644724192784,0.01412081,2928.5,2928.1,1.61770348]
[1644724192985,1.45245359,2928.4,2928.1,1.61770348]
[1644724193795,1.4665744,2928.5,2928.1,1.61770348]
[1644724193995,1.45245359,2928.4,2928.1,1.61770348]
[1644724194993,1.45245359,2928.3,2928.1,1.61770348]
[1644724195193,1.45245359,2928.2,2928.1,1.61770348]
[1644724195392,0.01412081,2928.5,2928.1,1.61770348]
[1644724195393,1.45245359,2928.4,2928.1,1.61770348]
[1644724196235,1.45245359,2928.3,2928.1,1.61770348]
[1644724196437,0.01412081,2928.5,2928.1,1.61770348]
[1644724196638,1.45249624,2928.4,2928.1,1.61770348]
[1644724197339,1.45249624,2928.3,2928.1,1.61770348]
[1644724197534,1.45249624,2928.4,2928.1,1.61770348]
[1644724197734,1.45246652,2928.3,2928.1,1.61770348]
[1644724197937,0.01412081,2928.5,2928.1,1.61770348]
[1644724198135,1.45246496,2928.4,2928.1,1.61770348]
[1644724198639,1.45246496,2928.3,2928.1,1.61770348]
[1644724198839,0.01412091,2928.5,2928.1,1.61770348]
[1644724199038,1.45247165,2928.4,2928.1,1.61770348]
[1644724199243,0.01412091,2928.5,2928.1,1.61770348]
[1644724199685,0.00385672,2928.5,2928.1,1.61770348]
[1644724199886,0.01412091,2928.5,2928.1,1.61770348]
[1644724200487,0.01412091,2928.5,2928.2,3.96120862]
[1644724200889,0.00385672,2928.5,2928.2,3.96120862]
[1644724201087,0.01026429,2928.5,2928.2,3.96120862]
[1644724201892,0.01026429,2928.5,2928.3,1.489]
[1644724202087,0.39932519,2928.6,2928.4,4.18386449]
[1644724202288,0.39546847,2928.6,2928.5,3.43313761]
[1644724202488,0.39546847,2928.6,2928.5,4.03313761]
[1644724202693,0.39546847,2928.6,2928.3,2.82011585]
[1644724202890,0.39546847,2928.6,2928.1,1.01770348]
[1644724202891,0.39932519,2928.6,2928.1,1.01770348]
[1644724203544,0.01026429,2928.5,2928.1,1.01770348]
[1644724204341,0.01026429,2928.5,2928.0,1.85024725]
[1644724204548,0.39932519,2928.6,2928.0,1.85024725]
[1644724204742,0.01026419,2928.5,2928.0,1.85024725]
[1644724205642,0.39932519,2928.6,2928.0,1.85024725]
[1644724205841,0.00995616,2928.5,2928.0,1.85024725]
[1644724206441,0.00995616,2928.5,2928.3,1.08616724]
[1644724206891,0.39932519,2928.6,2928.3,1.08616724]
[1644724207097,0.00995632,2928.5,2928.3,1.08616724]
[1644724207991,0.39932519,2928.6,2928.3,1.08616724]
[1644724208196,0.00995632,2928.5,2928.3,1.08616724]
[1644724209199,0.39932519,2928.6,2928.3,1.08616724]
[1644724209603,0.00969084,2928.5,2928.3,1.08616724]
[1644724210501,0.39932519,2928.6,2928.3,1.08616724]
[1644724210735,0.00969084,2928.5,2928.3,1.08616724]
[1644724211537,0.39932519,2928.6,2928.3,1.08616724]
[1644724211938,0.00969084,2928.5,2928.3,1.08616724]
[1644724212841,0.39932519,2928.6,2928.3,1.08616724]
[1644724213045,0.00970876,2928.5,2928.3,1.08616724]
[1644724213843,0.00970876,2928.5,2928.0,1.85024725]
[1644724214047,4.06887748,2928.5,2928.0,1.85024725]
[1644724214247,0.8325134,2928.5,2928.0,1.85024725]
[1644724215289,0.1706,2928.5,2928.0,1.85024725]
[1644724215488,0.18030859,2928.5,2928.0,1.85024725]
[1644724216093,0.00970859,2928.5,2928.0,1.85024725]
[1644724216494,3.80900133,2928.6,2928.0,1.85024725]
[1644724216692,0.00970738,2928.5,2928.0,1.85024725]
[1644724217692,0.39932519,2928.6,2928.0,1.85024725]
[1644724217892,0.1706,2928.5,2928.0,1.85024725]
[1644724219144,0.18030061,2928.5,2928.0,1.85024725]
[1644724219345,1.45270897,2928.4,2928.0,1.85024725]
[1644724219646,1.45656569,2928.4,2928.0,1.85024725]
[1644724220247,1.45270897,2928.3,2928.0,1.85024725]
[1644724221346,1.45142338,2928.3,2928.0,1.85024725]
[1644724226449,4.2,2928.0,2927.7,0.00968248]
[1644724226646,5.0,2927.8,2927.7,0.00968248]
[1644724226843,4.2,2927.6,2926.7,0.25]
[1644724227041,4.2,2927.5,2926.4,0.03874794]
[1644724227242,4.2,2927.5,2926.3,7.48]
[1644724227243,4.2,2927.5,2926.7,0.85726788]
[1644724228042,4.8628,2927.7,2926.7,0.85726788]
[1644724228247,5.0,2927.3,2926.2,0.25]
[1644724228450,5.0,2927.1,2926.2,0.25]
[1644724228649,3.989,2927.0,2925.2,2.8746]
[1644724228847,4.1598,2927.0,2925.5,0.25]
[1644724229248,4.1598,2927.0,2926.0,0.98972511]
[1644724231191,4.1598,2927.0,2926.4,0.01026298]
[1644724231991,4.1598,2927.0,2926.0,0.98972511]
[1644724232193,4.1598,2927.0,2926.4,3.4]
[1644724232396,4.1598,2927.0,2926.6,0.01026268]
[1644724233343,4.1598,2927.0,2926.4,3.4]
[1644724233546,4.1598,2927.0,2926.7,0.01026254]
[1644724234545,4.1598,2927.0,2926.4,3.4]
[1644724234745,4.1598,2927.0,2926.7,0.01026246]
[1644724235746,0.03684586,2926.9,2926.4,3.4]
[1644724236045,0.03684586,2926.9,2926.7,0.01026246]
[1644724236889,0.03684586,2926.9,2926.4,3.4]
[1644724237089,0.03684586,2926.9,2926.7,0.01026254]
[1644724238095,0.03684586,2926.9,2926.4,3.4]
[1644724238294,0.03684586,2926.9,2926.7,0.01026254]
[1644724238495,0.1708,2926.8,2926.7,0.01026254]
[1644724238894,3.81566754,2926.8,2926.7,0.01026254]
[1644724239298,3.81566754,2926.8,2926.4,3.4]
[1644724239494,3.64486754,2926.8,2926.6,0.01026261]
[1644724240297,3.66251389,2926.8,2926.6,0.01026261]
[1644724240497,3.66251389,2926.8,2926.4,3.4]
[1644724240742,3.66251389,2926.8,2926.6,0.01026268]